fUST/lending_fUST_20240110
["ID","MTS","AMOUNT","RATE_DAILY","PERIOD"]
[311029085,1704874247581,-500.0,0.00029589,2]
[311029086,1704874247591,-500.0,0.00029589,2]
[311029087,1704874247600,-1450.96,0.00029589,2]
[311029088,1704874247609,-500.0,0.00029589,2]
[311029089,1704874247619,-500.0,0.00029589,2]
[311029090,1704874247629,-2524.73,0.00029589,2]
[311029091,1704874247638,-4083.87,0.00029589,2]
[311029092,1704874247647,-500.0,0.00029589,2]
[311029093,1704874247657,-500.0,0.00029589,2]
[311029094,1704874247668,-500.0,0.00029589,2]
[311029095,1704874247677,-12575.4,0.00029589,2]
[311029096,1704874247687,-1501.81,0.00029589,2]
[311029097,1704874247696,-500.0,0.00029589,2]
[311029098,1704874247705,-500.0,0.00029589,2]
[311029099,1704874247714,-1495.45,0.00029589,2]
[311029100,1704874247724,-1974.68,0.00029589,2]
[311029101,1704874247733,-705.34,0.00029589,2]
[311029102,1704874247742,-591.04,0.00029589,2]
[311029103,1704874247751,-529.27051169,0.00029589,2]
[311029104,1704874247760,-2146.3,0.00029589,2]
[311029105,1704874247769,-15578.63121133,0.00029589,2]
[311029106,1704874247853,-1481.75421418,0.00029589,2]
[311029107,1704874247931,-857.37,0.00027397,2]
[311029108,1704874247941,-680.71282633,0.00027661,3]
[311029109,1704874247957,-2894.07717367,0.00027661,3]
[311029110,1704874247966,-366.9217186,0.0002767,4]
[311029111,1704874247975,-954.76110773,0.00029589,2]
[311029112,1704874247993,-857.37,0.00027397,2]
[311029113,1704874248003,-249.00437275,0.00029589,2]
[311029114,1704874248015,-750.99917998,0.00029589,2]
[311029170,1704875432517,-177.328897,0.00020187,2]
[311029171,1704875432527,-154.8915759,0.00020463,2]
[311029172,1704875432538,-154.8915759,0.00020463,2]
[311029173,1704875432547,-1578.65511595,0.00020463,2]
[311029174,1704875432560,-222.08283525,0.00020463,2]
[311029243,1704875438297,-365.73528202,0.00020186,2]
[311029244,1704875438308,-1112.08388858,0.00020462,2]
[311029245,1704875438317,-154.8915759,0.00020462,2]
[311029246,1704875438327,-631.49328564,0.00020463,2]
[311029248,1704875438336,-665.20950523,0.00020463,2]
[311029249,1704875438345,-1195.09669838,0.00020464,2]
[311029250,1704875438354,-676.96253794,0.00020464,2]
[311029251,1704875438362,-264.87381963,0.00020464,2]
[311029252,1704875438371,-154.8915759,0.00020464,2]
[311029253,1704875438380,-1239.896093,0.00020464,2]
[311029254,1704875438389,-606.65611963,0.00020464,2]
[311029255,1704875438398,-24900.0,0.00020465,2]
[311029256,1704875438408,-8188.07,0.00021454,3]
[311029257,1704875438417,-154.8915759,0.00021461,2]
[311029259,1704875438425,-164.24940589,0.00021461,2]
[311029260,1704875438435,-154.8915759,0.00021462,2]
[311029262,1704875438443,-236.79527182,0.00021462,2]
[311029264,1704875438452,-360.7362932,0.00021462,2]
[311029265,1704875438461,-2034.80072126,0.00021462,2]
[311029266,1704875438469,-2994.25505405,0.00021463,2]
[311029267,1704875438478,-312.98141829,0.00021463,2]
[311029268,1704875438487,-266.19065175,0.00021463,2]
[311029269,1704875438495,-154.8915759,0.00021463,2]
[311029270,1704875438504,-326.73090334,0.00021464,2]
[311029271,1704875438512,-569.19143491,0.00021464,2]
[311029272,1704875438521,-976.0012481,0.00021464,2]
[311029273,1704875438530,-154.8915759,0.00021464,2]
[311029274,1704875438538,-45670.01896799,0.00021464,2]
[311029275,1704875438547,-154.8915759,0.00021465,4]
[311029276,1704875438556,-5953.08134693,0.00021465,2]
[311029277,1704875438565,-10500.0358078,0.00021467,2]
[311029278,1704875438573,-155.49878153,0.00021473,2]
[311029279,1704875438582,-207.8220593,0.00021484,2]
[311029280,1704875438591,-246.76310494,0.00021964,2]
[311029281,1704875438600,-167.29399207,0.00021965,2]
[311029282,1704875438609,-1988.77445231,0.00021975,2]
[311029283,1704875438618,-469.64064105,0.00021978,2]
[311029284,1704875438627,-7270.39582211,0.00021992,2]
[311029285,1704875438636,-292.83058016,0.00022,4]
[311029286,1704875438644,-3931.75997852,0.00022,2]
[311029287,1704875438653,-156.86767994,0.00022,2]
[311029288,1704875438662,-348.08339068,0.00022,2]
[311029289,1704875438671,-4917.8600325,0.00022,2]
[311029290,1704875438680,-761.96494906,0.00022186,5]
[311029291,1704875438688,-471.048957,0.00022327,2]
[311029292,1704875438697,-9920.80434626,0.00023,2]
[311029293,1704875438706,-2093.08732709,0.00023,2]
[311029294,1704875438715,-154.8915759,0.00024,2]
[311029295,1704875438723,-2293.16748545,0.00024,2]
[311029296,1704875438732,-793.5023498,0.00024652,2]
[311029297,1704875438741,-200.0,0.00024652,2]
[311029298,1704875438750,-168.53910427,0.00024652,2]
[311029299,1704875438759,-4511.72395104,0.00024652,2]
[311029300,1704875438768,-901.30981836,0.00024652,2]
[311029301,1704875438777,-322.26268464,0.00024652,2]
[311029302,1704875438786,-155.04415154,0.00024652,2]
[311029303,1704875438795,-332.11301448,0.00024652,2]
[311029304,1704875438804,-3008.39923082,0.00024652,2]
[311029305,1704875438813,-727.50102971,0.00024652,2]
[311029306,1704875438823,-4784.50329475,0.00024652,2]
[311029307,1704875438831,-458.56514418,0.00024653,2]
[311029309,1704875438840,-158.32519524,0.00024653,2]
[311029310,1704875438849,-1554.75394377,0.00024653,2]
[311029311,1704875438859,-9224.45888187,0.00024653,2]
[311029312,1704875438868,-200.0,0.00024658,2]
[311029314,1704875438877,-380.0,0.00024658,2]
[311029315,1704875438886,-497.00944952,0.0002498,5]
[311029316,1704875438895,-4711.08145103,0.00025,2]
[311029317,1704875438905,-614.01289661,0.00025,2]
[311029318,1704875438915,-677.45880314,0.00025,2]
[311029319,1704875438924,-154.8915759,0.00025,2]
[311029320,1704875438933,-154.8915759,0.00025,2]
[311029321,1704875438942,-3000.0,0.00025,2]
[311029322,1704875438951,-166.666666,0.00025441,2]
[311029323,1704875438961,-150.0,0.00025593,2]
[311029324,1704875438970,-2126.09470477,0.00026,2]
[311029325,1704875438979,-525.91402641,0.00026,2]
[311029326,1704875438988,-166.666666,0.00026135,2]
[311029327,1704875438998,-288.815673,0.0002663,2]
[311029328,1704875439007,-166.666666,0.00026829,2]
[311029329,1704875439016,-733.25771754,0.00027,2]
[311029330,1704875439025,-198.44488859,0.00027211,2]
[311029331,1704875439035,-8187.72323878,0.00027211,2]
[311029332,1704875439044,-75747.320046,0.00027211,2]
[311029333,1704875439054,-60808.12338575,0.00027296,2]
[311029334,1704875439066,-1973.37751476,0.00027296,2]
[311029335,1704875439077,-1161.86326151,0.00027296,2]
[311029367,1704875441249,-154.8915759,0.00020462,2]
[311029368,1704875441259,-844.0457705,0.00021454,3]
[311029369,1704875441271,-950.52083863,0.00021454,3]
[311029432,1704876115600,354.784129,0.0001743,2]
[311029435,1704876158938,154.8915759,0.0001743,2]
[311029436,1704876162852,4300.0,0.00017424,2]
[311029438,1704876176934,154.8915759,0.0001743,2]
[311029439,1704876187105,195035.4327192,0.0001743,2]
[311029440,1704876187519,-12000.0,0.0001743,2]
[311029441,1704876187788,-12000.0,0.0001743,2]
[311029442,1704876188110,-11039.88876732,0.0001743,2]
[311029443,1704876191314,-10074.42475107,0.0001743,2]
[311029444,1704876191461,-205.60050512,0.0001743,2]
[311029445,1704876195448,-200.0,0.0001743,2]
[311029446,1704876195542,-1.98106369,0.0001743,2]
[311029447,1704876205398,-1178.83538707,0.0001743,2]
[311029448,1704876205594,-24.05786504,0.0001743,2]
[311029451,1704876298529,5000.0,0.00017415,2]
[311029452,1704876299100,-12000.0,0.00017415,2]
[311029453,1704876299425,-7900.0,0.00017415,2]
[311029458,1704876441514,-567.2803498,0.00017547,2]
[311029459,1704876441724,-11.57715,0.00017547,2]
[311029460,1704876551107,-1587.23277287,0.00018391,2]
[311029461,1704876551127,-520.97192037,0.00018391,2]
[311029462,1704876551147,-154.8915759,0.00018392,2]
[311029463,1704876551167,-154.8915759,0.00018392,2]
[311029464,1704876551188,-154.8915759,0.00018393,3]
[311029465,1704876551209,-154.8915759,0.00018393,2]
[311029466,1704876551230,-1748.75083316,0.00018393,2]
[311029527,1704876632396,-154.8915759,0.00016553,3]
[311029529,1704876632406,-177.392064,0.0001752,2]
[311029531,1704876632415,-1737.24988191,0.00018387,2]
[311029532,1704876632424,-2927.32783457,0.00018388,2]
[311029534,1704876632434,-155.93975806,0.00018392,2]
[311029535,1704876632443,-155.354682,0.00018392,2]
[311029536,1704876632452,-155.27793956,0.00018392,2]
[311029537,1704876632462,-1395.46063887,0.00018392,2]
[311029538,1704876632471,-364.93621289,0.00018392,2]
[311029539,1704876632480,-45670.01896799,0.00018392,2]
[311029540,1704876632489,-1974.29864553,0.00018393,2]
[311029541,1704876632498,-469.64064105,0.00018395,2]
[311029542,1704876632507,-2172.16643462,0.000189,2]
[311029543,1704876632516,-4336.63880828,0.00019309,2]
[311029544,1704876632525,-813.66524987,0.00019316,2]
[311029545,1704876632535,-975.60037361,0.00019316,2]
[311029546,1704876632544,-1112.08388858,0.000195,2]
[311029547,1704876632553,-483.06431337,0.000198,2]
[311029548,1704876632563,-155.10513336,0.000198,2]
[311029549,1704876632572,-175.53220833,0.00019801,2]
[311029550,1704876632581,-3007.71146714,0.00019801,2]
[311029551,1704876632590,-250.45496536,0.00019801,2]
[311029552,1704876632600,-14024.68,0.0001998,3]
[311029553,1704876632610,-16829.61,0.0001999,3]
[311029554,1704876632619,-2994.25505405,0.0002,2]
[311029555,1704876632628,-151.39403629,0.0002,2]
[311029556,1704876632637,-2643.934491,0.0002,2]
[311029557,1704876632646,-2643.934491,0.0002,2]
[311029558,1704876632655,-2643.934491,0.0002,2]
[311029559,1704876632664,-2643.934491,0.0002,2]
[311029560,1704876632673,-2643.934491,0.0002,2]
[311029561,1704876632682,-676.96253794,0.0002,2]
[311029562,1704876632691,-1195.09669838,0.0002,2]
[311029563,1704876632700,-236.79527182,0.0002,2]
[311029564,1704876632709,-154.8915759,0.0002,2]
[311029565,1704876632718,-266.19065175,0.0002,2]
[311029566,1704876632728,-853.57612089,0.0002,2]
[311029567,1704876632737,-154.8915759,0.0002,2]
[311029568,1704876632746,-154.8915759,0.0002,2]
[311029569,1704876632755,-326.73090334,0.00021,2]
[311029570,1704876632764,-3498.1239256,0.00021023,2]
[311029571,1704876632774,-155.25349566,0.0002144,2]
[311029572,1704876632783,-1328.32730792,0.0002144,2]
[311029573,1704876632792,-182.21765281,0.00021453,2]
[311029574,1704876632802,-542.56772168,0.00021453,2]
[311029575,1704876632813,-155.09608849,0.00021453,2]
[311029576,1704876632823,-200.0,0.00021454,2]
[311029577,1704876632833,-3496.83624002,0.00021454,2]
[311029578,1704876632842,-2079.63666476,0.00021454,2]
[311029579,1704876632851,-300.0,0.00021454,2]
[311029580,1704876632863,-154.94093055,0.00021454,2]
[311029581,1704876632872,-274.8409763,0.00021918,2]
[311029582,1704876632881,-166.666666,0.00021918,2]
[311029583,1704876632891,-4917.8600325,0.00022,2]
[311029584,1704876632900,-292.83058016,0.00022,4]
[311029585,1704876632910,-668.10631608,0.00022,2]
[311029586,1704876632919,-3931.75997852,0.00022,2]
[311029587,1704876632928,-156.86767994,0.00022,2]
[311029588,1704876632937,-166.666666,0.00022431,2]
[311029589,1704876632946,-999.30048966,0.00022745,2]
[311029590,1704876632956,-166.666666,0.00022944,2]
[311029591,1704876632966,-2093.08732709,0.00023,2]
[311029592,1704876632976,-9920.80434626,0.00023,2]
[311029593,1704876632988,-166.666666,0.00023456,2]
[311029594,1704876632997,-2172.16643462,0.000239,2]
[311029595,1704876633006,-166.666666,0.00023969,2]
[311029596,1704876633015,-2293.16748545,0.00024,2]
[311029597,1704876633024,-154.8915759,0.00024,2]
[311029598,1704876633034,-166.666666,0.00024482,2]
[311029599,1704876633043,-199.005618,0.00024658,2]
[311029600,1704876633052,-4711.08145103,0.00025,2]
[311029601,1704876633062,-614.01289661,0.00025,2]
[311029602,1704876633072,-3000.0,0.00025,2]
[311029603,1704876633082,-677.45880314,0.00025,2]
[311029604,1704876633091,-150.0,0.00025391,2]
[311029605,1704876633101,-499.11648939,0.00025929,5]
[311029606,1704876633113,-525.91402641,0.00026,2]
[311029607,1704876633125,-177.392064,0.00026281,2]
[311029608,1704876633135,-881.94009009,0.00026303,2]
[311029609,1704876633144,-620.00002264,0.0002673,2]
[311029610,1704876633153,-3089.70069499,0.00026997,2]
[311029611,1704876633162,-500.0,0.00026999,2]
[311029612,1704876633171,-500.0,0.00026999,2]
[311029613,1704876633179,-500.0,0.00026999,2]
[311029614,1704876633188,-500.0,0.00026999,2]
[311029615,1704876633198,-500.0,0.00026999,2]
[311029616,1704876633208,-500.0,0.00026999,2]
[311029617,1704876633217,-500.0,0.00026999,2]
[311029618,1704876633226,-500.0,0.00026999,2]
[311029619,1704876633235,-500.0,0.00026999,2]
[311029620,1704876633244,-500.0,0.00026999,2]
[311029621,1704876633367,-500.0,0.00026999,2]
[311029622,1704876633377,-500.0,0.00026999,2]
[311029623,1704876633386,-500.0,0.00026999,2]
[311029624,1704876633396,-500.0,0.00026999,2]
[311029625,1704876633405,-500.0,0.00026999,2]
[311029626,1704876633415,-455.18520574,0.00026999,2]
[311029627,1704876633424,-500.0,0.00026999,2]
[311029628,1704876633433,-500.0,0.00026999,2]
[311029629,1704876633442,-500.0,0.00026999,2]
[311029630,1704876633451,-300.0,0.00026999,2]
[311029631,1704876633460,-500.0,0.00026999,2]
[311029632,1704876633470,-733.25771754,0.00027,2]
[311029633,1704876633479,-719.71125454,0.00027,2]
[311029634,1704876633490,-1500.0,0.00027,2]
[311029635,1704876633499,-180.01916407,0.00027078,2]
[311029636,1704876633508,-5000.0,0.00027179,2]
[311029637,1704876633517,-50000.0,0.00027179,2]
[311029638,1704876633526,-59594.69098965,0.00027179,2]
[311029639,1704876633536,-5000.0,0.00027179,2]
[311029640,1704876633545,-3500.0,0.00027179,2]
[311029641,1704876633555,-2818.24492395,0.00027179,2]
[311029642,1704876633564,-180.01916406,0.00027201,2]
[311029643,1704876633573,-366.07525278,0.00027292,2]
[311029644,1704876633582,-234.3704358,0.00027294,2]
[311029645,1704876633592,-400.29188325,0.00027294,2]
[311029646,1704876633602,-184.84154129,0.00027294,2]
[311029647,1704876633613,-155.30088633,0.00027294,2]
[311029648,1704876633623,-164.73645358,0.00027294,2]
[311029649,1704876633632,-185.20166311,0.00027294,2]
[311029650,1704876633642,-171.40852832,0.00027294,2]
[311029651,1704876633651,-155.1084241,0.00027294,2]
[311029652,1704876633660,-643.32630078,0.00027294,2]
[311029653,1704876633670,-808.85406863,0.00027294,2]
[311029654,1704876633679,-2783.98221718,0.00027294,2]
[311029655,1704876633688,-155.43782931,0.00027294,2]
[311029656,1704876633698,-393.96903214,0.00027294,2]
[311029657,1704876633707,-289.43551104,0.00027294,2]
[311029658,1704876633716,-155.62270884,0.00027294,2]
[311029659,1704876633725,-590.11543549,0.00027294,2]
[311029660,1704876633734,-902.57007428,0.00027294,2]
[311029661,1704876633743,-156.27907449,0.00027295,2]
[311029662,1704876633753,-1354.76161098,0.00027295,2]
[311029663,1704876633762,-93952.5862056,0.00027296,2]
[311029664,1704876633771,-32113.65059237,0.00027297,2]
[311029665,1704876633780,-180.01916406,0.00027325,2]
[311029666,1704876633789,-158.56600314,0.00027393,2]
[311029667,1704876633798,-555.30533459,0.00027393,2]
[311029668,1704876633807,-155.06275693,0.00027393,2]
[311029669,1704876633817,-157.83112603,0.00027393,2]
[311029670,1704876633826,-191.38797694,0.00027393,2]
[311029671,1704876633835,-375.60113793,0.00027393,2]
[311029672,1704876633845,-248.85222163,0.00027393,2]
[311029673,1704876633854,-190.48061924,0.00027393,2]
[311029674,1704876633863,-155.01068281,0.00027393,2]
[311029675,1704876633872,-363.52121373,0.00027393,2]
[311029676,1704876633882,-155.60540652,0.00027393,2]
[311029677,1704876633891,-2038.23595814,0.00027393,2]
[311029678,1704876633900,-180.28265137,0.00027393,2]
[311029679,1704876633910,-155.10911915,0.00027393,2]
[311029680,1704876633919,-3612.07378676,0.00027393,2]
[311029681,1704876633928,-938.06299446,0.00027393,2]
[311029682,1704876633938,-1024.5237895,0.00027393,2]
[311029683,1704876633947,-398.93384627,0.00027393,2]
[311029684,1704876633956,-155.39178535,0.00027394,2]
[311029685,1704876633965,-155.55366155,0.00027394,2]
[311029686,1704876633975,-6272.70721473,0.00027394,2]
[311029687,1704876633984,-180.71696306,0.00027395,2]
[311029688,1704876633993,-261.64390678,0.00027395,2]
[311029689,1704876634002,-209.26166858,0.00027395,2]
[311029690,1704876634012,-272.90618919,0.00027395,2]
[311029691,1704876634021,-359.83224495,0.00027395,2]
[311029692,1704876634030,-231.23011768,0.00027395,2]
[311029693,1704876634039,-729.71955724,0.00027395,2]
[311029694,1704876634048,-155.71004798,0.00027395,2]
[311029695,1704876634057,-1277.34074551,0.00027395,2]
[311029696,1704876634067,-155.71773844,0.00027395,2]
[311029697,1704876634076,-3687.23522318,0.00027395,2]
[311029698,1704876634085,-155.12313287,0.00027395,2]
[311029699,1704876634094,-155.49555193,0.00027395,2]
[311029700,1704876634103,-270.35189076,0.00027395,2]
[311029701,1704876634113,-2243.52109577,0.00027395,2]
[311029702,1704876634122,-155.17839186,0.00027395,2]
[311029703,1704876634131,-253.6788212,0.00027395,2]
[311029704,1704876634140,-435.14086557,0.00027395,4]
[311029705,1704876634149,-500.0,0.00027395,4]
[311029706,1704876634158,-500.0,0.00027395,4]
[311029707,1704876634168,-396.91781394,0.00027395,4]
[311029708,1704876634177,-500.0,0.00027395,4]
[311029709,1704876634186,-500.0,0.00027395,4]
[311029710,1704876634195,-167.42956308,0.00027395,4]
[311029711,1704876634204,-500.0,0.00027395,4]
[311029712,1704876634213,-500.0,0.00027395,4]
[311029713,1704876634222,-500.0,0.00027395,4]
[311029714,1704876634232,-605.69998686,0.00027395,4]
[311029715,1704876634241,-500.0,0.00027395,4]
[311029716,1704876634250,-295.04505457,0.00027395,4]
[311029717,1704876634259,-499.99999999,0.00027395,4]
[311029718,1704876634269,-54201.56100322,0.00027396,2]
[311029719,1704876634278,-501.02043593,0.00027397,2]
[311029720,1704876634287,-500.0,0.00027397,2]
[311029721,1704876634296,-500.0,0.00027397,2]
[311029722,1704876634306,-500.0,0.00027397,2]
[311029723,1704876634315,-500.0,0.00027397,2]
[311029724,1704876634324,-746.34,0.00027397,2]
[311029725,1704876634333,-500.0,0.00027397,2]
[311029726,1704876634342,-501.12198462,0.00027397,2]
[311029727,1704876634351,-1351.62,0.00027397,2]
[311029728,1704876634362,-500.0,0.00027397,2]
[311029729,1704876634372,-500.61378219,0.00027397,2]
[311029730,1704876634381,-501.1581429,0.00027397,2]
[311029731,1704876634389,-500.0,0.00027397,2]
[311029732,1704876634398,-500.0,0.00027397,2]
[311029733,1704876634406,-500.0,0.00027397,2]
[311029734,1704876634415,-501.33305653,0.00027397,2]
[311029735,1704876634424,-660.59,0.00027397,2]
[311029736,1704876634433,-500.0,0.00027397,2]
[311029737,1704876634442,-496.21810783,0.00027397,2]
[311029738,1704876634451,-500.0,0.00027397,2]
[311029739,1704876634460,-501.51045553,0.00027397,2]
[311029740,1704876634471,-503.05323719,0.00027397,2]
[311029741,1704876634480,-500.0,0.00027397,2]
[311029742,1704876634489,-501.46967249,0.00027397,2]
[311029743,1704876634498,-501.10416106,0.00027397,2]
[311029744,1704876634508,-231.27172654,0.00027397,2]
[311029745,1704876634517,-575.84,0.00027397,2]
[311029746,1704876634526,-501.34716716,0.00027397,2]
[311029747,1704876634537,-500.0,0.00027397,2]
[311029748,1704876634546,-502.47780367,0.00027397,2]
[311029749,1704876634555,-533.73,0.00027397,2]
[311029750,1704876634567,-1001.38259395,0.00027397,2]
[311029751,1704876634576,-503.16131874,0.00027397,2]
[311029752,1704876634585,-936.01,0.00027397,2]
[311029753,1704876634594,-500.0,0.00027397,2]
[311029754,1704876634603,-500.0,0.00027397,2]
[311029755,1704876634614,-500.0,0.00027397,2]
[311029756,1704876634623,-211.07566614,0.00027397,2]
[311029757,1704876634632,-402.09100132,0.00027397,2]
[311029758,1704876634641,-510.22720106,0.00027397,2]
[311029759,1704876634656,-503.20325283,0.00027397,2]
[311029760,1704876634665,-566.1607247,0.00027397,2]
[311029761,1704876634675,-517.01672452,0.00027397,2]
[311029762,1704876634684,-500.0,0.00027397,2]
[311029763,1704876634693,-500.0,0.00027397,2]
[311029764,1704876634702,-500.0,0.00027397,2]
[311029765,1704876634711,-500.0,0.00027397,2]
[311029766,1704876634721,-502.44655997,0.00027397,2]
[311029767,1704876634730,-500.0,0.00027397,2]
[311029768,1704876634741,-500.0,0.00027397,2]
[311029769,1704876634750,-500.0,0.00027397,2]
[311029770,1704876634760,-506.2982467,0.00027397,2]
[311029771,1704876634770,-500.0,0.00027397,2]
[311029772,1704876634779,-503.59279333,0.00027397,2]
[311029773,1704876634788,-500.0,0.00027397,2]
[311029774,1704876634797,-500.66775379,0.00027397,2]
[311029775,1704876634806,-501.29303316,0.00027397,2]
[311029776,1704876634815,-500.0,0.00027397,2]
[311029777,1704876634824,-500.0,0.00027397,2]
[311029778,1704876634834,-500.0,0.00027397,2]
[311029779,1704876634843,-501.83111774,0.00027397,2]
[311029780,1704876634852,-506.65770087,0.00027397,2]
[311029781,1704876634863,-562.16150847,0.00027397,2]
[311029782,1704876634871,-500.0,0.00027397,2]
[311029783,1704876634880,-524.12489659,0.00027397,2]
[311029784,1704876634889,-493.76665639,0.00027397,2]
[311029785,1704876634898,-603.66307077,0.00027397,2]
[311029786,1704876634907,-503.43008667,0.00027397,2]
[311029787,1704876634917,-500.0,0.00027397,2]
[311029788,1704876634926,-500.0,0.00027397,2]
[311029789,1704876634935,-500.0,0.00027397,2]
[311029790,1704876634944,-500.0,0.00027397,2]
[311029791,1704876634953,-500.0,0.00027397,2]
[311029792,1704876634963,-500.0,0.00027397,2]
[311029793,1704876634972,-500.0,0.00027397,2]
[311029794,1704876634985,-502.36378172,0.00027397,2]
[311029795,1704876634994,-500.6363967,0.00027397,2]
[311029796,1704876635004,-500.0,0.00027397,2]
[311029797,1704876635014,-681.12,0.00027397,2]
[311029798,1704876635023,-500.0,0.00027397,2]
[311029799,1704876635033,-542.35,0.00027397,2]
[311029800,1704876635043,-500.0,0.00027397,2]
[311029801,1704876635052,-503.17133488,0.00027397,2]
[311029802,1704876635063,-500.0,0.00027397,2]
[311029803,1704876635073,-500.82822457,0.00027397,2]
[311029804,1704876635082,-503.3769544,0.00027397,2]
[311029805,1704876635092,-503.73609041,0.00027397,2]
[311029806,1704876635102,-507.50639236,0.00027397,2]
[311029807,1704876635113,-500.0,0.00027397,2]
[311029808,1704876635123,-500.0,0.00027397,2]
[311029809,1704876635133,-500.0,0.00027397,2]
[311029810,1704876635142,-500.0,0.00027397,2]
[311029811,1704876635152,-500.0,0.00027397,2]
[311029812,1704876635161,-500.0,0.00027397,2]
[311029813,1704876635170,-500.0,0.00027397,2]
[311029814,1704876635180,-1435.89,0.00027397,2]
[311029815,1704876635190,-502.72071019,0.00027397,2]
[311029816,1704876635199,-504.30430713,0.00027397,2]
[311029817,1704876635208,-189.40971969,0.00027397,2]
[311029818,1704876635218,-20035.59365478,0.00027397,10]
[311029819,1704876635228,-500.0,0.00027397,2]
[311029820,1704876635237,-500.0,0.00027397,2]
[311029821,1704876635247,-500.0,0.00027397,2]
[311029822,1704876635256,-500.0,0.00027397,2]
[311029823,1704876635265,-500.0,0.00027397,2]
[311029824,1704876635275,-571.3599163,0.00027397,2]
[311029825,1704876635284,-1700.86,0.00027397,2]
[311029826,1704876635294,-500.0,0.00027397,2]
[311029827,1704876635304,-503.3951306,0.00027397,2]
[311029828,1704876635314,-501.9526429,0.00027397,2]
[311029829,1704876635324,-500.0,0.00027397,2]
[311029830,1704876635335,-515.78038111,0.00027397,2]
[311029831,1704876635345,-500.0,0.00027397,2]
[311029832,1704876635355,-500.0,0.00027397,2]
[311029833,1704876635366,-501.05321242,0.00027397,2]
[311029834,1704876635376,-500.0,0.00027397,2]
[311029835,1704876635386,-504.1082049,0.00027397,2]
[311029836,1704876635396,-1728.88,0.00027397,2]
[311029837,1704876635406,-197.2146599,0.00027397,2]
[311029838,1704876635416,-500.0,0.00027397,2]
[311029839,1704876635426,-500.0,0.00027397,2]
[311029840,1704876635435,-500.0,0.00027397,2]
[311029841,1704876635446,-515.06000901,0.00027397,2]
[311029842,1704876635456,-506.5382968,0.00027397,2]
[311029843,1704876635465,-500.0,0.00027397,2]
[311029844,1704876635475,-500.0,0.00027397,2]
[311029845,1704876635485,-513.26199714,0.00027397,2]
[311029846,1704876635494,-500.0,0.00027397,2]
[311029847,1704876635504,-500.0,0.00027397,2]
[311029848,1704876635513,-500.0,0.00027397,2]
[311029849,1704876635523,-555.76,0.00027397,2]
[311029850,1704876635533,-501.25921112,0.00027397,2]
[311029851,1704876635542,-500.0,0.00027397,2]
[311029852,1704876635552,-502.2715108,0.00027397,2]
[311029853,1704876635561,-500.0,0.00027397,2]
[311029854,1704876635570,-500.70399391,0.00027397,2]
[311029855,1704876635580,-1429.94,0.00027397,2]
[311029856,1704876635589,-454.51255567,0.00027397,2]
[311029857,1704876635599,-502.84193222,0.00027397,2]
[311029858,1704876635611,-500.9561627,0.00027397,2]
[311029859,1704876635716,-500.2761618,0.00027397,2]
[311029860,1704876635726,-1000.0,0.00027397,5]
[311029861,1704876635736,-500.0,0.00027397,2]
[311029862,1704876635745,-500.0,0.00027397,2]
[311029863,1704876635755,-1000.0,0.00027397,4]
[311029864,1704876635765,-602.33008702,0.00027397,2]
[311029865,1704876635774,-502.40935148,0.00027397,2]
[311029866,1704876635783,-1986.25,0.00027397,2]
[311029867,1704876635793,-1986.25,0.00027397,2]
[311029868,1704876635802,-1986.25,0.00027397,2]
[311029869,1704876635811,-502.50749345,0.00027397,2]
[311029870,1704876635820,-500.0,0.00027397,2]
[311029871,1704876635830,-502.37025823,0.00027397,2]
[311029872,1704876635839,-502.88294829,0.00027397,2]
[311029873,1704876635849,-500.0,0.00027397,2]
[311029874,1704876635861,-500.0,0.00027397,2]
[311029875,1704876635871,-500.62912109,0.00027397,2]
[311029876,1704876635881,-519.8,0.00027397,2]
[311029877,1704876635891,-500.0,0.00027397,2]
[311029878,1704876635901,-812.78,0.00027397,2]